{"text_format":"3","workbook":"xlsx","n_sheets":2,"sheets":["Pricing Template","Thamani Technologies"],"read":"whole","date_system":"1900"}

{"sheet":"Pricing Template","index":0,"n_rows":66,"n_cols":10,"rows_kept":66,"merged":[[1,1,1,8],[2,1,2,2],[2,3,2,8],[3,1,3,2],[3,3,3,8],[4,1,4,2],[4,3,4,8],[6,1,6,8],[7,1,7,8],[8,1,8,8],[9,1,9,8],[10,1,10,8],[11,1,11,8],[12,1,12,8],[13,1,13,8],[14,1,14,8],[15,1,15,8],[17,1,17,2],[18,1,18,2],[19,1,19,2],[22,1,22,2],[65,2,65,3]]}
[]
[null,"ANNEXURE B  – PRICING SCHEDULE"]
[null,"TENDER NAME:",null,"PROCUREMENT OF CISCO NETWORK EQUIPMENT FOR THE RELOCATION OF A DISASTER RECOVERY (DR) SITE TO A SARS OWNED BUILDING , ALBERTON CAMPUS. "]
[null,"TENDER NUMBER:",null,"RFP 25/2024"]
[null,"BIDDER'S NAME: "]
[]
[null,"NOTES:"]
[null,"1. Bidders are required to complete all columns highlighted in \"Green\" only.  All cells must be populated and if no value is inserted it will be regarded as Zero."]
[null,"2. Bidders must note that all pricing must be at unit cost (Include margin, packing, shipment, delivery) which is in SA Rands \"ZAR\" and exclusive of VAT as the template with automatically calculate the total including VAT. It is the bidders responsibility to consider the Foreign currency exchange rate and all other direct and/or indirect costs relating to their price proposal when completing the price template."]
[null,"3. Bidders must indicate ROE (Rate of Exchange) used under \"Table 1\" below."]
[null,"4.  The quoted prices MUST be inclusive of all SARS' requirements as per the Business Requirements Specification. No additional costs will be considered post award."]
[null,"5.The pricing is to remain valid 180 days from the closing date of this tender."]
[null,"6. Bidders are not allowed to change the format of this pricing template; any changes by bidders may result in their bid being regarded as non-responsive"]
[null,"7. Bidders can provide comments, assumptions and any points of clarification on a separate letter as an annexure to their price proposal, and this should be done on their company letterhead. "]
[null,"8. Bidders are not allowed to change the format of this pricing template; any changes by the bidders may result in their bid being non-responsive."]
[null,"9. Bidders must complete the Pricing Template, print the spreadsheet, initial each page, sign and submit in Hardcopy also submit in electronic (EXCEL) format."]
[]
[null,"Table 1. Fixed Rate of Exchange (ROE)"]
[null,"Description",null,"ROE Rate of Exchange\n\"ZAR\""]
[null,"Fixed USD/Rand Exchange Rate"]
[]
[]
[null,"Table 2. Bill of Material"]
[null,"Line Number","Part Number","Description","Estimated Lead Time (Days)","QTY","Unit Price (Excl VAT)","Total Cost (Excl. VAT) ","VAT","Total Price (Incl. VAT)"]
[null,"1.0","N9K-C93108TC-FX3","Nexus 9300 with 48p 100M/1/10GT & 6p 40/100G QSFP28+",14,2,null,{"$f":"G25*F25","v":0},{"$f":"H25*15%","v":0},{"$f":"H25+I25","v":0}]
[null,"1.1","NXK-AF-PE","Dummy PID for Airflow Selection Port-side Exhaust",14,2,null,{"$f":"G26*F26","v":0},{"$f":"H26*15%","v":0},{"$f":"H26+I26","v":0}]
[null,"1.2","MODE-NXOS","Mode selection between ACI and NXOS",21,2,null,0,0,0]
[null,"1.3","NXOS-CS-10.4.3F","Nexus 9300, 9500, 9800 NX-OS SW 10.4.3 (64bit) Cisco Silicon",21,2,null,0,0,0]
[null,"1.4","NXA-SFAN-35CFM-PE","Nexus Fan, 35CFM, port side exhaust airflow /w EEPROM",14,8,null,0,0,0]
[null,"1.5","MEM-UPG-OPT-OUT","OPT OUT PID FOR MEM UPGRADE USE ONLY",14,2,null,0,0,0]
[null,"1.6","NXA-PAC-500W-PE","Nexus NEBs AC 500W PSU -  Port Side Exhaust",14,4,null,0,0,0]
[null,"1.7","CAB-250V-10A-ID","AC Power Cord - 250V, 10A , India",7,4,null,0,0,0]
[null,"1.8","NXK-ACC-KIT-1RU","Nexus 3K/9K Fixed Accessory Kit,  1RU front and rear removal",14,2,null,0,0,0]
[null,"1.9","NXOS-SLP-INFO-9K","Info PID for Smart Licensing using Policy for N9K",21,2,null,0,0,0]
[null,"1.10","QSFP-H40G-AOC1M","40GBASE Active Optical Cable, 1m",14,2,null,0,0,0]
[null,"1.11","C1E1TN9300XF-3Y","Data Center Networking Essentials Term N9300 XF, 3Y",3,2,null,0,0,0]
[null,"1.12","SVS-L1N9KE-XF-3Y","CX L1 Support:DCN Essentials Term N9300 XF, 3Y",3,2,null,0,0,0]
[null,"2.0","N9K-C93180YC-FX3","Nexus 9300 48p 1/10/25G, 6p 40/100G, MACsec,SyncE",14,2,null,0,0,0]
[null,"2.1","MODE-NXOS","Mode selection between ACI and NXOS",21,2,null,0,0,0]
[null,"2.2","NXK-AF-PE","Dummy PID for Airflow Selection Port-side Exhaust",14,2,null,0,0,0]
[null,"2.3","NXOS-CS-10.4.3F","Nexus 9300, 9500, 9800 NX-OS SW 10.4.3 (64bit) Cisco Silicon",21,2,null,0,0,0]
[null,"2.4","NXK-ACC-KIT-1RU","Nexus 3K/9K Fixed Accessory Kit,  1RU front and rear removal",14,2,null,0,0,0]
[null,"2.5","NXA-FAN-35CFM-PE","Nexus Fan, 35CFM, port side exhaust airflow",14,8,null,0,0,0]
[null,"2.6","NXK-MEM-16GB","Additional memory of 16GB for Nexus Switches",14,2,null,0,0,0]
[null,"2.7","NXA-PAC-650W-PE","Nexus NEBs AC 650W PSU -  Port Side Exhaust",14,4,null,0,0,0]
[null,"2.8","CAB-250V-10A-ID","AC Power Cord - 250V, 10A , India",7,4,null,0,0,0]
[null,"2.9","NXOS-SLP-INFO-9K","Info PID for Smart Licensing using Policy for N9K",21,2,null,0,0,0]
[null,"2.10","SFP-10G-SR-S","10GBASE-SR SFP Module, Enterprise-Class",14,96,null,0,0,0]
[null,"2.11","QSFP-H40G-AOC1M","40GBASE Active Optical Cable, 1m",14,4,null,0,0,0]
[null,"2.12","C1E1TN9300XF-3Y","Data Center Networking Essentials Term N9300 XF, 3Y",3,2,null,0,0,0]
[null,"3.0","N9K-C92348GC-X","Nexus 9200 with 48p 100M/1GT, 4p 10/25G & 2p 40/100G QSFP28",28,2,null,0,0,0]
[null,"3.1","NXK-AF-PE","Dummy PID for Airflow Selection Port-side Exhaust",14,2,null,0,0,0]
[null,"3.2","NXOS-CS-10.4.2F","Nexus 9300, 9500, 9800 NX-OS SW 10.4.2 (64bit) Cisco Silicon",21,2,null,0,0,0]
[null,"3.3","NXK-ACC-KIT-1RU","Nexus 3K/9K Fixed Accessory Kit,  1RU front and rear removal",14,2,null,0,0,0]
[null,"3.4","NXA-FAN-30CFM-F","Nexus Fan, 30CFM, port side exhaust airflow",7,6,null,0,0,0]
[null,"3.5","N2200-PAC-400W","Nexus 400W AC Power Supply, Std airflow (port side exhaust)",7,4,null,0,0,0]
[null,"3.6","CAB-250V-10A-ID","AC Power Cord - 250V, 10A , India",7,4,null,0,0,0]
[null,"3.7","SFP-10G-SR","10GBASE-SR SFP Module",14,4,null,0,0,0]
[null,"3.8","SFP-10G-AOC1M","10GBASE Active Optical SFP+ Cable, 1M",14,2,null,0,0,0]
[null,"3.9","NXOS-SLP-INFO-9K","Info PID for Smart Licensing using Policy for N9K",21,2,null,0,0,0]
[null,"3.10","C1E1TN9300GF-3Y","Data Center Networking Essentials Term N9300 GF, 3Y",3,2,null,0,0,0]
[null,null,"GRAND TOTAL",{"$nulls":6},{"$f":"SUM(J25:J61)","v":{"v":0,"d":"R 0.00"}}]
[]
[]
[]
[null,null,"Company Representative Name",null,null,"Signature",null,"Date"]

{"sheet":"Thamani Technologies","index":1,"n_rows":246,"n_cols":9,"rows_kept":246,"hidden":true,"merged":[[1,1,1,8],[2,1,2,2],[2,3,2,8],[3,1,3,2],[3,3,3,8],[4,1,4,2],[4,3,4,8],[6,1,6,8],[7,1,7,8],[8,1,8,8],[9,1,9,8],[10,1,10,8],[11,1,11,8],[12,1,12,8],[243,1,244,1]]}
[]
[null,"ANNEXURE B  – PRICING SCHEDULE"]
[null,"TENDER NAME:",null,"APPOINTMENT OF A SERVICE PROVIDER FOR THE SUPPLY AND DELIVERY OF DELL EMC SERVERS AT GAUTENG"]
[null,"TENDER NUMBER:",null,"RFT21/2022"]
[null,"BIDDER'S NAME: ",null,"Thamani Technologies & Systems (PTY) Ltd"]
[]
[null,"NOTES:"]
[null,"1. Bidders are required to complete ONLY THE GREEN CELL."]
[null,"2. Bidders must note SARS Business Requirements Specification and should provide costing accordingly. The pricing should be inclusive of all required components."]
[null,"3. Bidders can provide comments, assumptions and any points of clarification on a separate letter as an Annexure to their pricing submission, and this should be done in your company letterhead. (Comments,assumptions and any points of clarification must be attached to the pricing template)"]
[null,"4. Bidders are not allowed to change the format of this pricing template; any changes by the bidders may result in their bid being non-responsive."]
[null,"5. Bidders are required to sign-off their price proposal and submit the hardcopy with an Excel version back to SARS. "]
[]
[]
[null,"Annexure B2 -Servers"]
[null,"Config #","Description","QTY","SKU","Unit Price (Excl VAT)","Total Cost (Excl. VAT) ","VAT","Total Price (Incl. VAT)"]
[null,1,"MX7000 Chassis - Docker Swam (15G) ",3,null,{"v":114406.6,"d":"R 114,406.60"},{"$f":"D17*F17","v":{"v":343219.80000000005,"d":"R 343,219.80"}},{"$f":"G17*15%","v":{"v":51482.97000000001,"d":"R 51,482.97"}},{"$f":"G17+H17","v":{"v":394702.7700000001,"d":"R 394,702.77"}}]
[null,null,"PowerEdge MX7000 Chassis",null,"[210-ANYY]"]
[null,null,"PowerEdge MX7000 Chassis Configuration",null,"[321-BDJT]"]
[null,null,"MX7000 Sled Blank",null,"[321-BDND]"]
[null,null,"MX7000 EMEA1 Ship Docs (English/French/German/Spanish/Russian/Hebrew)",null,"[340-CHGO]"]
[null,null,"ReadyRail II for MX7000",null,"[770-BCPC]"]
[null,null,"Redundant Management Module for PowerEdge MX7000 Chassis",null,"[403-BBTY]"]
[null,null,"Ethernet switch or Fabric Expander",null,"[340-CJQG]"]
[null,null,"No I/O Module, Filler Blank",null,"[340-CJQH], [543-BBDP]"]
[null,null,"2 Fibre Channel Switches",null,"[555-BEPU]"]
[null,null,"PowerEdge MX7000 Redundant Power Supply, 6 x 3000W, (3+3)",null,"[450-AGXF]"]
[null,null,"Jumper Cord - C20/C21, 2.5M, 250V, 16A (MultiNational)",null,"[450-AHTB]"]
[null,null,"PowerEdge MX7000 Shipping Material, Crate",null,"[340-CWUN]"]
[null,null,"No Systems Documentation, No OpenManage DVD Kit",null,"[631-AACK]"]
[null,null,"Unique Random Password",null,"[389-CGLD]"]
[null,null,"LCD, no Quick Sync",null,"[350-BBPG]"]
[null,null,"Enterprise Order - EMEA",null,"[800-11671]"]
[null,null,"Basic Next Business Day 36 Months, 36 Month(s)",null,"[709-BBIM]"]
[null,null,"Prosupport Plus and 4Hr Mission Critical, 60 Month(s)",null,"[865-BBNF], [865-BBNG]"]
[null,null,"ProDeploy Plus Dell EMC PowerEdge MX7000 Chassis",null,"[683-21794], [683-21795], [706-12561]"]
[]
[null,2,"Dell EMC MX9116n FSE A1 - Docker Swam (15G) ",3,null,{"v":29178.8,"d":"R29,178.80"},{"$f":"D38*F38","v":{"v":87536.4,"d":"R 87,536.40"}},{"$f":"G38*15%","v":{"v":13130.46,"d":"R 13,130.46"}},{"$f":"G38+H38","v":{"v":100666.85999999999,"d":"R 100,666.86"}}]
[null,null,"Dell EMC MX9116N 25GbE Fabric Switching Engine, 12x QDD28, 2x Q28, 2 x Q28/32GFC",null,"[210-AODD]"]
[null,null,"Switch Factory Installed in MX7000 slot A1",null,"[389-CGOO]"]
[null,null,"Dell Networking Cable, 2x100GbE, QSFP28-DD to QSFP28-DD, Active Optical Cable, No FEC, 5M",null,"[470-ACTI]"]
[null,null,"Dell Networking Cable, MPO to 4xLC, Fiber Breakout Cable, MMF, OM4, Optics Required, 3M",null,"[470-ABOG]"]
[null,null,"OS10 Enterprise MX9116N, POS",null,"[634-BPKE]"]
[null,null,"3Yr Basic Warranty - Next Business Day - Minimum Warranty",null,"[709-13025], [709-16795]"]
[null,null,"5Yr ProSupport Plus and 4hr Mission Critical",null,"[528-10337], [865-81341], [865-81354]"]
[null,null,"Support Services No Installation Service Selected (Contact Sales rep for more details)",null,"[683-11870]"]
[]
[null,3,"Dell EMC MX9116n FSE A2 - Docker Swam (15G) ",3,null,{"v":147084,"d":"R147,084.00"},{"$f":"D48*F48","v":{"v":441252,"d":"R 441,252.00"}},{"$f":"G48*15%","v":{"v":66187.8,"d":"R 66,187.80"}},{"$f":"G48+H48","v":{"v":507439.8,"d":"R 507,439.80"}}]
[null,null,"Dell EMC MX9116N 25GbE Fabric Switching Engine, 12x QDD28, 2x Q28, 2 x Q28/32GFC",null,"[210-AODD]"]
[null,null,"Switch Factory Installed in MX7000 slot A2",null,"[389-CGOP]"]
[null,null,"Dell Networking Cable, 2x100GbE, QSFP28-DD to QSFP28-DD, Active Optical Cable, No FEC, 5M",null,"[470-ACTI]"]
[null,null,"Dell Networking Cable, MPO to 4xLC, Fiber Breakout Cable, MMF, OM4, Optics Required, 3M",null,"[470-ABOG]"]
[null,null,"OS10 Enterprise MX9116N, POS",null,"[634-BPKE]"]
[null,null,"3Yr Basic Warranty - Next Business Day - Minimum Warranty",null,"[709-13025], [709-16795]"]
[null,null,"5Yr ProSupport Plus and 4hr Mission Critical",null,"[528-10337], [865-81341], [865-81354]"]
[null,null,"Support Services No Installation Service Selected (Contact Sales rep for more details)",null,"[683-11870]"]
[]
[null,4,"Dell EMC MXG610s FC Module C2 - Docker Swam (15G) ",3,null,{"v":665050.4,"d":"R665,050.40"},{"$f":"D58*F58","v":{"v":1995151.2000000002,"d":"R 1,995,151.20"}},{"$f":"G58*15%","v":{"v":299272.68,"d":"R 299,272.68"}},{"$f":"G58+H58","v":{"v":2294423.8800000004,"d":"R 2,294,423.88"}}]
[null,null,"Dell EMC MXG610S switch, up to 32 port FC32, incl 16x activated ports,FI & 4x FC32 SFP+ optics",null,"[210-AOCK]"]
[null,null,"Switch Factory Installed in MX7000 slot C2",null,"[389-CGOT]"]
[null,null,"3Yr Parts Only Warranty",null,"[709-13393], [709-16841]"]
[null,null,"5Yr ProSupport Plus and  4Hr Mission Critical",null,"[528-10337], [865-81877], [865-81886]"]
[null,null,"Support Services No Installation Service Selected (Contact Sales rep for more details)",null,"[683-11870]"]
[]
[null,5,"Dell EMC MXG610s FC Module C1 - Docker Swam (15G) ",3,null,{"v":7011.2,"d":"R7,011.20"},{"$f":"D65*F65","v":{"v":21033.6,"d":"R 21,033.60"}},{"$f":"G65*15%","v":{"v":3155.0399999999995,"d":"R 3,155.04"}},{"$f":"G65+H65","v":{"v":24188.64,"d":"R 24,188.64"}}]
[null,null,"Dell EMC MXG610S switch, up to 32 port FC32, incl 16x activated ports,FI & 4x FC32 SFP+ optics",null,"[210-AOCK]"]
[null,null,"Switch Factory Installed in MX7000 slot C1",null,"[389-CGOS]"]
[null,null,"3Yr Parts Only Warranty",null,"[709-13393], [709-16841]"]
[null,null,"5Yr ProSupport Plus and  4Hr Mission Critical",null,"[528-10337], [865-81877], [865-81886]"]
[null,null,"Support Services No Installation Service Selected (Contact Sales rep for more details)",null,"[683-11870]"]
[]
[null,6,"PowerEdge MX750C - Docker Swam (15G) ",20,null,{"v":897446.2,"d":"R897,446.20"},{"$f":"D72*F72","v":{"v":17948924,"d":"R 17,948,924.00"}},{"$f":"G72*15%","v":{"v":2692338.6,"d":"R 2,692,338.60"}},{"$f":"G72+H72","v":{"v":20641262.6,"d":"R 20,641,262.60"}}]
[null,null,"PowerEdge MX750C Server",null,"[210-AYCP]"]
[null,null,"MX750c Sled Enclosure + Motherboard",null,"[321-BGTG]"]
[null,null,"QLogic 2742 Dual Port 32Gb Fibre Channel Mini-Mezz Card",null,"[544-BBCP]"]
[null,null,"iDRAC9, Enterprise 15G",null,"[385-BBQV]"]
[null,null,"OpenManage Enterprise Advanced",null,"[528-BIYY]"]
[null,null,"2.5\" Chassis with up to 4 SAS/SATA/NVMe Hard Drives",null,"[321-BGDD]"]
[null,null,"Power Saving Dell Active Power Controller",null,"[750-AABF]"]
[null,null,"UEFI BIOS Boot Mode with GPT Partition",null,"[800-BBDM]"]
[null,null,"C7, Unconfigured RAID for HDDs or SSDs (Mixed Drive Types Allowed)",null,"[780-BCDS]"]
[null,null,"PERC H755 Mini (SAS)",null,"[405-AAZJ], [470-AEPO]"]
[null,null,"3200MT/s RDIMMs",null,"[370-AEVR]"]
[null,null,"Performance Optimized",null,"[370-AAIP]"]
[null,null,"480GB SSD SATA Mix Use 6Gbps 512 2.5in Hot-plug AG Drive",null,"[400-BBKW]"]
[null,null,"Trusted Platform Module 2.0 V3",null,"[461-AAIG]"]
[null,null,"Redundant Power Supply on Chassis (X+3 PSU Configuration)",null,"[450-AJPS]"]
[null,null,"iDRAC Group Manager, Disabled",null,"[379-BCQY]"]
[null,null,"2 CPU Heatsink",null,"[412-AAUO]"]
[null,null,"QLogic FastLinQ 41262 Dual Port 10/25GbE Mezzanine Card with Storage Offloads (iSCSI, FCoE)",null,"[543-BBDI]"]
[null,null,"No Operating System",null,"[611-BBBF]"]
[null,null,"No Media Required",null,"[605-BBFN]"]
[null,null,"Shipping Material, Integrated in MX7000 chassis, PowerEdge MX750C, EMEA1 Systems Docs",null,"[340-CWOI], [340-CWOJ]"]
[null,null,"PowerEdge MX750C Regulatory Label, CE Marking",null,"[389-DZSX]"]
[null,null,"No Systems Documentation, No OpenManage DVD Kit",null,"[631-AACK]"]
[null,null,"Shipped in Chassis",null,"[750-AADI]"]
[null,null,"Basic Next Business Day 36 Months, 36 Month(s)",null,"[709-BBIM]"]
[null,null,"Prosupport Plus and 4Hr Mission Critical, 60 Month(s)",null,"[865-BBNF], [865-BBNG]"]
[null,null,"Support Services No Installation Service Selected (Contact Sales rep for more details)",null,"[683-11870]"]
[null,null,"Configuration Services, Standard ISG System Report, Deliver Via Email",null,"[708-10082]"]
[null,null,"Order Configuration Shipbox Label (Ship Date, Model, Processor Speed, HDD Size, RAM)",null,"[293-10049]"]
[null,null,"Intel® Xeon® Gold 6342 2.8G, 24C/48T, 11.2GT/s, 36M Cache, Turbo, HT (230W) DDR4-3200",null,"[338-CBXQ]"]
[null,null,"Intel® Xeon® Gold 6342 2.8G, 24C/48T, 11.2GT/s, 36M Cache, Turbo, HT (230W) DDR4-3200",null,"[338-CBXQ], [379-BDCO]"]
[null,null,"64GB RDIMM, 3200MT/s, Dual Rank, 16Gb",null,"[370-AEVP]"]
[null,7,"PowerEdge R940 Server SAP Hanna",1,null,{"v":5106920,"d":"R5,106,920.00"},{"$f":"D105*F105","v":{"v":5106920,"d":"R 5,106,920.00"}},{"$f":"G105*15%","v":{"v":766038,"d":"R 766,038.00"}},{"$f":"G105+H105","v":{"v":5872958,"d":"R 5,872,958.00"}}]
[null,null,"PowerEdge R940 Server 6TB",null,"[210-AKWP]"]
[null,null,"VMware vSphere 7 Enterprise Plus, 1",null,"634-BFNC"]
[null,null," VMware vCenter Server Standard for vSphere",null,"528-CUXG "]
[null,null,"ProSupport for Software, VMware, vSphere Enterprise Plus, 1 CPU, 5 Year",null,"821-15728"]
[null,null," ProSupport for Software, VMware, 5 Year",null," 821-15719"]
[null,8,"PowerEdge MX740C - QA Brooklyn [1.5TB RAM] ",2,null,{"v":1607359.6,"d":"R1,607,359.60"},{"$f":"D111*F111","v":{"v":3214719.2,"d":"R 3,214,719.20"}},{"$f":"G111*15%","v":{"v":482207.88,"d":"R 482,207.88"}},{"$f":"G111+H111","v":{"v":3696927.08,"d":"R 3,696,927.08"}}]
[null,null,"PowerEdge MX740C Server, Choose Label",null,"[210-AOFH]"]
[null,null,"Trusted Platform Module 2.0 V3",null,"[461-AAIM]"]
[null,null,"2.5\" Chassis with up to 6 SAS/SATA/NVMe Hard Drives MLK",null,"[321-BERL]"]
[null,null,"Shipping Material, Individual Blade, PowerEdge MX740C, EMEA1 Systems Docs",null,"[340-CBCN], [340-CHFP]"]
[null,null,"PowerEdge MX740C Regulatory Label, CE Marking",null,"[389-DUVB]"]
[null,null,"Intel Xeon Gold 6234 3.3G, 8C/16T, 10.4GT/s, 24.75M Cache, Turbo, HT (130W) DDR4-2933",null,"[338-BTSP]"]
[null,null,"Intel Xeon Gold 6234 3.3G, 8C/16T, 10.4GT/s, 24.75M Cache, Turbo, HT (130W) DDR4-2933",null,"[338-BTSP], [379-BDCO]"]
[null,null,"2 CPU Heatsink",null,"[412-AANK]"]
[null,null,"3200MT/s RDIMMs",null,"[370-AEVR]"]
[null,null,"Performance Optimized",null,"[370-AAIP]"]
[null,null,"64GB RDIMM, 3200MT/s, Dual Rank, 16Gb",null,"[370-AEVP]"]
[null,null,"No Operating System",null,"[611-BBBF]"]
[null,null,"No Media Required",null,"[605-BBFN]"]
[null,null,"C3, RAID 1 for 2 HDDs or SSDs (Matching Type/Speed/Capacity)",null,"[780-BCDN]"]
[null,null,"PERC H730P Mini for MX740c",null,"[405-AARS]"]
[null,null,"480GB SSD SATA Mix Use 6Gbps 512 2.5in Hot-plug AG Drive",null,"[400-BBKW]"]
[null,null,"QLogic FastLinQ 41262 Dual Port 10/25GbE Mezzanine Card with Storage Offloads (iSCSI, FCoE)",null,"[543-BBDI]"]
[null,null,"QLogic 2742 Dual Port 32Gb Fibre Channel Mini-Mezz Card",null,"[544-BBCP]"]
[null,null,"iDRAC9 Enterprise with OpenManage Enterprise Advanced",null,"[385-BBKT], [528-BIYY]"]
[null,null,"Power Saving Dell Active Power Controller",null,"[750-AABF]"]
[null,null,"CFG-No PSU Selection for Single Node Shipping",null,"[379-BDYP]"]
[null,null,"Order Configuration Shipbox Label (Ship Date, Model, Processor Speed, HDD Size, RAM)",null,"[293-10049]"]
[null,null,"No Systems Documentation, No OpenManage DVD Kit",null,"[631-AACK]"]
[null,null,"UEFI BIOS Setting",null,"[800-BBDM]"]
[null,null,"Group Manager, Disabled",null,"[379-BCQY]"]
[null,null,"Enterprise Order - EMEA",null,"[800-11671]"]
[null,null,"Basic Next Business Day 36 Months, 36 Month(s)",null,"[709-BBIL]"]
[null,null,"Prosupport Plus and 4Hr Mission Critical, 60 Month(s)",null,"[865-BBNF], [865-BBNG]"]
[null,null,"Support Services No Installation Service Selected (Contact Sales rep for more details)",null,"[683-11870]"]
[null,9,"DELL EMC ME5024 - 12TB Usable SSD ",5,null,{"v":0,"d":"R 0.00"},{"$f":"D141*F141","v":{"v":0,"d":"R 0.00"}},{"$f":"G141*15%","v":{"v":0,"d":"R 0.00"}},{"$f":"G141+H141","v":{"v":0,"d":"R 0.00"}}]
[null,null,"Dell ME5024 Storage Array",null,"[210-BBOO]"]
[null,null,"ME5024 Shipping EMEA 2,No Reg Lbl",null,"[340-DCJG]"]
[null,null,"ME5024 SHIPPING REG LBL",null,"[389-EEUO]"]
[null,null,"25Gb iSCSI 8 Port Dual Controller",null,"[403-BCPG]"]
[null,null,"Transceiver, 10Gb SFP+, Short Range",null,"[407-BCBE]"]
[null,null,"Hard Drive Filler 2.5in, Single Blank",null,"[400-AEPR]"]
[null,null,"3.84TB SSD SAS ISE Read Intensive 12Gbps 512 2.5in Hot-plug AG Drive",null,"[400-AXPF]"]
[null,null,"Rack Rails 2U",null,"[770-BECR]"]
[null,null,"Power Supply, 580W, Redundant, WW",null,"[450-ALXL]"]
[null,null,"ME Series 2U Bezel",null,"[325-BDDO]"]
[null,null,"Rack Power Cord 2M (C13/C14 10A)",null,"[450-AADY]"]
[null,null,"ProSupport Plus and 4Hr Mission Critical, 60 Month(s)",null,"[199-BIBE], [199-BIBF]"]
[null,null,"Parts Only Warranty 36 Months, 36 Month(s)",null,"[709-BDHI]"]
[null,null,"ProDeploy Plus Dell EMC Storage ME 5xxx 2U",null,"[683-27562], [706-12563]"]
[null,10,"MX7000 Chassis - Contact Center ",2,null,{"v":633343.2,"d":"R 633,343.20"},{"$f":"D156*F156","v":{"v":1266686.4,"d":"R 1,266,686.40"}},{"$f":"G156*15%","v":{"v":190002.96,"d":"R 190,002.96"}},{"$f":"G156+H156","v":{"v":1456689.3599999999,"d":"R 1,456,689.36"}}]
[null,null,"PowerEdge MX7000 Chassis",null,"[210-ANYY]"]
[null,null,"PowerEdge MX7000 Chassis Configuration",null,"[321-BDJT]"]
[null,null,"MX7000 EMEA1 Ship Docs (English/French/German/Spanish/Russian/Hebrew)",null,"[340-CHGO]"]
[null,null,"ReadyRail II for MX7000",null,"[770-BCPC]"]
[null,null,"Redundant Management Module for PowerEdge MX7000 Chassis",null,"[403-BBTY]"]
[null,null,"Ethernet switch or Fabric Expander",null,"[340-CJQG]"]
[null,null,"No I/O Module, Filler Blank",null,"[340-CJQH], [543-BBDP]"]
[null,null,"2 Fibre Channel Switches",null,"[555-BEPU]"]
[null,null,"PowerEdge MX7000 Redundant Power Supply, 6 x 3000W, (3+3)",null,"[450-AGXF]"]
[null,null,"Jumper Cord - C20/C21, 2.5M, 250V, 16A (MultiNational)",null,"[450-AHTB]"]
[null,null,"PowerEdge MX7000 Shipping Material, Crate",null,"[340-CWUN]"]
[null,null,"No Systems Documentation, No OpenManage DVD Kit",null,"[631-AACK]"]
[null,null,"Unique Random Password",null,"[389-CGLD]"]
[null,null,"LCD, no Quick Sync",null,"[350-BBPG]"]
[null,null,"Enterprise Order - EMEA",null,"[800-11671]"]
[null,null,"Basic Next Business Day 36 Months, 36 Month(s)",null,"[709-BBIM]"]
[null,null,"Prosupport Plus and 4Hr Mission Critical, 60 Month(s)",null,"[865-BBNF], [865-BBNG]"]
[null,null,"ProDeploy Plus Dell EMC PowerEdge MX7000 Chassis",null,"[683-21794], [683-21795], [706-12561]"]
[null,11,"Dell EMC MX9116n FSE A1 - Contact Center ",2,null,{"v":784663.6,"d":"R 784,663.60"},{"$f":"D175*F175","v":{"v":1569327.2,"d":"R 1,569,327.20"}},{"$f":"G175*15%","v":{"v":235399.08,"d":"R 235,399.08"}},{"$f":"G175+H175","v":{"v":1804726.28,"d":"R 1,804,726.28"}}]
[null,null,"Dell EMC MX9116N 25GbE Fabric Switching Engine, 12x QDD28, 2x Q28, 2 x Q28/32GFC",null,"[210-AODD]"]
[null,null,"Switch Factory Installed in MX7000 slot A1",null,"[389-CGOO]"]
[null,null,"Dell Networking Cable, 2x100GbE, QSFP28-DD to QSFP28-DD, Active Optical Cable, No FEC, 5M",null,"[470-ACTI]"]
[null,null,"Dell Networking Cable, MPO to 4xLC, Fiber Breakout Cable, MMF, OM4, Optics Required, 3M",null,"[470-ABOG]"]
[null,null,"OS10 Enterprise MX9116N, POS",null,"[634-BPKE]"]
[null,null,"3Yr Basic Warranty - Next Business Day - Minimum Warranty",null,"[709-13025], [709-16795]"]
[null,null,"5Yr ProSupport Plus and 4hr Mission Critical",null,"[528-10337], [865-81341], [865-81354]"]
[null,null,"Support Services - No Installation Service Selected (Contact Sales rep for more details)",null,"[683-11870]"]
[null,12,"Dell EMC MX9116n FSE A2 - Contact Center ",2,null,{"v":647080,"d":"R 647,080.00"},{"$f":"D184*F184","v":{"v":1294160,"d":"R 1,294,160.00"}},{"$f":"G184*15%","v":{"v":194124,"d":"R 194,124.00"}},{"$f":"G184+H184","v":{"v":1488284,"d":"R 1,488,284.00"}}]
[null,null,"Dell EMC MX9116N 25GbE Fabric Switching Engine, 12x QDD28, 2x Q28, 2 x Q28/32GFC",null,"[210-AODD]"]
[null,null,"Switch Factory Installed in MX7000 slot A2",null,"[389-CGOP]"]
[null,null,"Dell Networking Cable, 2x100GbE, QSFP28-DD to QSFP28-DD, Active Optical Cable, No FEC, 5M",null,"[470-ACTI]"]
[null,null,"Dell Networking Cable, MPO to 4xLC, Fiber Breakout Cable, MMF, OM4, Optics Required, 3M",null,"[470-ABOG]"]
[null,null,"OS10 Enterprise MX9116N, POS",null,"[634-BPKE]"]
[null,null,"3Yr Basic Warranty - Next Business Day - Minimum Warranty",null,"[709-13025], [709-16795]"]
[null,null,"5Yr ProSupport Plus and 4hr Mission Critical",null,"[528-10337], [865-81341], [865-81354]"]
[null,null,"Support Services - No Installation Service Selected (Contact Sales rep for more details)",null,"[683-11870]"]
[null,13,"Dell EMC MXG610s FC Module C1 - Contact Center ",2,null,{"v":633343.2,"d":"R 633,343.20"},{"$f":"D193*F193","v":{"v":1266686.4,"d":"R 1,266,686.40"}},{"$f":"G193*15%","v":{"v":190002.96,"d":"R 190,002.96"}},{"$f":"G193+H193","v":{"v":1456689.3599999999,"d":"R 1,456,689.36"}}]
[null,null,"Dell EMC MXG610S switch, up to 32 port FC32, incl 16x activated ports,FI & 4x FC32 SFP+ optics",null,"[210-AOCK]"]
[null,null,"Switch Factory Installed in MX7000 slot C1",null,"[389-CGOS]"]
[null,null,"3Yr Parts Only Warranty",null,"[709-13393], [709-16841]"]
[null,null,"5Yr ProSupport Plus and  4Hr Mission Critical",null,"[528-10337], [865-81877], [865-81886]"]
[null,null,"Support Services - No Installation Service Selected (Contact Sales rep for more details)",null,"[683-11870]"]
[null,14,"Dell EMC MXG610s FC Module C2 - Contact Center ",2,null,{"v":647080,"d":"R 647,080.00"},{"$f":"D199*F199","v":{"v":1294160,"d":"R 1,294,160.00"}},{"$f":"G199*15%","v":{"v":194124,"d":"R 194,124.00"}},{"$f":"G199+H199","v":{"v":1488284,"d":"R 1,488,284.00"}}]
[null,null,"Dell EMC MXG610S switch, up to 32 port FC32, incl 16x activated ports,FI & 4x FC32 SFP+ optics",null,"[210-AOCK]"]
[null,null,"Switch Factory Installed in MX7000 slot C2",null,"[389-CGOT]"]
[null,null,"3Yr Parts Only Warranty",null,"[709-13393], [709-16841]"]
[null,null,"5Yr ProSupport Plus and  4Hr Mission Critical",null,"[528-10337], [865-81877], [865-81886]"]
[null,null,"Support Services - No Installation Service Selected (Contact Sales rep for more details)",null,"[683-11870]"]
[null,15,"PowerEdge MX740C - Contact Center [576GB RAM] ",16,null,{"v":553967.4,"d":"R 553,967.40"},{"$f":"D205*F205","v":{"v":8863478.4,"d":"R 8,863,478.40"}},{"$f":"G205*15%","v":{"v":1329521.76,"d":"R 1,329,521.76"}},{"$f":"G205+H205","v":{"v":10193000.16,"d":"R 10,193,000.16"}}]
[null,null,"PowerEdge MX740C Server, Choose Label",null,"[210-AOFH]"]
[null,null,"Trusted Platform Module 2.0 V3",null,"[461-AAIM]"]
[null,null,"2.5\" Chassis with up to 6 SAS/SATA/NVMe Hard Drives MLK",null,"[321-BERL]"]
[null,null,"Shipping Material, Integrated in MX7000 chassis, PowerEdge MX740C, EMEA1 Systems Docs",null,"[340-CHFP], [750-AADI]"]
[null,null,"PowerEdge MX740C Regulatory Label, CE Marking",null,"[389-DUVB]"]
[null,null,"Intel Xeon Gold 6234 3.3G, 8C/16T, 10.4GT/s, 24.75M Cache, Turbo, HT (130W) DDR4-2933",null,"[338-BTSP]"]
[null,null,"Intel Xeon Gold 6234 3.3G, 8C/16T, 10.4GT/s, 24.75M Cache, Turbo, HT (130W) DDR4-2933",null,"[338-BTSP], [379-BDCO]"]
[null,null,"2 CPU Heatsink",null,"[412-AANK]"]
[null,null,"3200MT/s RDIMMs",null,"[370-AEVR]"]
[null,null,"Performance Optimized",null,"[370-AAIP]"]
[null,null,"32GB RDIMM, 3200MT/s, Dual Rank, 16Gb BASE x8",null,"[370-AGDS]"]
[null,null,"64GB RDIMM, 3200MT/s, Dual Rank, 16Gb",null,"[370-AEVP]"]
[null,null,"No Operating System",null,"[611-BBBF]"]
[null,null,"No Media Required",null,"[605-BBFN]"]
[null,null,"C3, RAID 1 for 2 HDDs or SSDs (Matching Type/Speed/Capacity)",null,"[780-BCDN]"]
[null,null,"PERC H730P Mini for MX740c",null,"[405-AARS]"]
[null,null,"480GB SSD SATA Mix Use 6Gbps 512 2.5in Hot-plug AG Drive",null,"[400-BBKW]"]
[null,null,"QLogic FastLinQ 41262 Dual Port 10/25GbE Mezzanine Card with Storage Offloads (iSCSI, FCoE)",null,"[543-BBDI]"]
[null,null,"QLogic 2742 Dual Port 32Gb Fibre Channel Mini-Mezz Card",null,"[544-BBCP]"]
[null,null,"iDRAC9 Enterprise with OpenManage Enterprise Advanced",null,"[385-BBKT], [528-BIYY]"]
[null,null,"Power Saving Dell Active Power Controller",null,"[750-AABF]"]
[null,null,"Redundant Power Supply on Chassis (X+3 PSU Configuration)",null,"[450-AJPS]"]
[null,null,"Order Configuration Shipbox Label (Ship Date, Model, Processor Speed, HDD Size, RAM)",null,"[293-10049]"]
[null,null,"No Systems Documentation, No OpenManage DVD Kit",null,"[631-AACK]"]
[null,null,"UEFI BIOS Setting",null,"[800-BBDM]"]
[null,null,"Group Manager, Disabled",null,"[379-BCQY]"]
[null,null,"Enterprise Order - EMEA",null,"[800-11671]"]
[null,null,"Basic Next Business Day 36 Months, 36 Month(s)",null,"[709-BBIL]"]
[null,null,"Prosupport Plus and 4Hr Mission Critical, 60 Month(s)",null,"[865-BBNF], [865-BBNG]"]
[null,null,"Support Services - No Installation Service Selected (Contact Sales rep for more details)",null,"[683-11870]"]
[]
[null,16,"VMware vSphere Enterprise Plus 1 CPU (max 32 cores/CPU socket) ",60,"821-15728",null,{"$f":"D237*F237","v":{"v":0,"d":"R 0.00"}},{"$f":"G237*15%","v":{"v":0,"d":"R 0.00"}},{"$f":"G237+H237","v":{"v":0,"d":"R 0.00"}}]
[]
[null,17,"3Yr ProSupport Plus and 4hr Mission Critical",10,"732-30109",null,{"$f":"D239*F239","v":{"v":0,"d":"R 0.00"}},{"$f":"G239*15%","v":{"v":0,"d":"R 0.00"}},{"$f":"G239+H239","v":{"v":0,"d":"R 0.00"}}]
[null,18,"3Yr ProSupport Plus and 4hr Mission Critical",48,"732-73610",null,{"v":0,"d":"R 0.00"},{"v":0,"d":"R 0.00"},{"v":0,"d":"R 0.00"}]
[]
[null,19,"RHMW01621 83 534,00 EACH 1 670 680,00 Red Hat OpenShift Platform Plus, Premium\n(2 Cores or 4 vCPU",10,null,{"v":897446.2,"d":"R 897,446.20"},{"$f":"D242*F242","v":{"v":8974462,"d":"R 8,974,462.00"}},{"$f":"G242*15%","v":{"v":1346169.3,"d":"R 1,346,169.30"}},{"$f":"G242+H242","v":{"v":10320631.3,"d":"R 10,320,631.30"}}]
[]
[null,20,"Dell Memory Upgrade - 16GB - 2Rx8 DDR4 RDIMM 3200MHz",96,null,{"v":254748.2,"d":"R 254,748.20"},{"$f":"D244*F244","v":{"v":24455827.200000003,"d":"R 24,455,827.20"}},{"$f":"G244*15%","v":{"v":3668374.0800000005,"d":"R 3,668,374.08"}},{"$f":"G244+H244","v":{"v":28124201.280000005,"d":"R 28,124,201.28"}}]
[null,null,"Dell Memory Upgrade - 32GB - 2Rx4 DDR4 RDIMM 3200MHz",96,null,{"v":392331.8,"d":"R 392,331.80"},{"v":37663852.8,"d":"R 37,663,852.80"},{"v":5649577.919999999,"d":"R 5,649,577.92"},{"v":43313430.72,"d":"R 43,313,430.72"}]
[null,null,"GRAND TOTAL",null,null,".",null,null,{"$f":"+I17+I38+I48+I58+I72+I65+I105+I111+I141+I156+I175+I184+I193+I199+I205+I237+I239+I240+I242+I244+I245","v":{"v":133178506.09,"d":"R 133,178,506.09"}}]